bitfinex/quotes_BTCUSD_20250831
["timestamp","ask_amount","ask_price","bid_price","bid_amount"]
[1756677994710,1.93105496,109140.0,109130.0,0.00047363]
[1756677994879,0.83739003,109120.0,109110.0,0.00294]
[1756677995086,1.06500469,109120.0,109110.0,0.00294]
[1756677995287,1.06500469,109120.0,109110.0,0.00494]
[1756677995498,0.7655149,109120.0,109110.0,0.00494]
[1756677995939,0.24294462,109120.0,109110.0,0.00494]
[1756677996121,0.24294462,109120.0,109110.0,0.00694]
[1756677996122,0.56999741,109120.0,109110.0,0.00694]
[1756677996516,0.72607741,109120.0,109110.0,0.00694]
[1756677996718,0.56999741,109120.0,109110.0,0.00694]
[1756677996920,0.72607741,109120.0,109110.0,0.00694]
[1756677997943,0.72607741,109120.0,109110.0,0.00894]
[1756677999139,1.16372702,109120.0,109110.0,0.00894]
[1756677999350,1.16373104,109120.0,109110.0,0.00894]
[1756677999576,1.09517258,109120.0,109110.0,0.00894]
[1756678001372,0.93909258,109120.0,109110.0,0.00894]
[1756678001605,0.92973929,109120.0,109110.0,0.00894]
[1756678002062,1.08581929,109120.0,109110.0,0.00894]
[1756678002256,1.09500145,109120.0,109110.0,0.00894]
[1756678002480,1.18329777,109120.0,109110.0,0.00894]
[1756678002912,1.15976311,109120.0,109110.0,0.00894]
[1756678003129,1.1833487,109120.0,109110.0,0.00894]
[1756678003362,1.20800776,109120.0,109110.0,0.00894]
[1756678003959,1.20800958,109120.0,109110.0,0.00894]
[1756678005337,0.96363326,109120.0,109110.0,0.00894]
[1756678006241,0.9389742,109120.0,109110.0,0.00894]
[1756678006461,0.96363326,109120.0,109110.0,0.00894]
[1756678006686,0.96363846,109120.0,109110.0,0.00894]
[1756678009243,0.9389794,109120.0,109110.0,0.00894]
[1756678009456,1.0949394,109120.0,109110.0,0.00894]
[1756678010160,1.09495083,109120.0,109110.0,0.00894]
[1756678011213,0.76789804,109120.0,109110.0,0.00894]
[1756678011476,1.09495083,109120.0,109110.0,0.00894]
[1756678012901,1.18316715,109120.0,109110.0,0.00894]
[1756678013580,1.09487083,109120.0,109110.0,0.00894]
[1756678013805,1.09688256,109120.0,109110.0,0.00894]
[1756678014025,1.0968828,109120.0,109110.0,0.00894]
[1756678014467,1.09688264,109120.0,109110.0,0.00894]
[1756678014712,1.08830334,109120.0,109110.0,0.00894]
[1756678014940,1.09688263,109120.0,109110.0,0.00894]
[1756678016161,0.94100263,109120.0,109110.0,0.00894]
[1756678016367,0.93899263,109120.0,109110.0,0.00894]
[1756678019326,0.94100263,109120.0,109110.0,0.00894]
[1756678020442,0.93899263,109120.0,109110.0,0.00894]
[1756678020712,0.60275768,109120.0,109110.0,0.61227405]
[1756678020957,0.23658535,109120.0,109110.0,0.28522126]
[1756678021150,0.57658535,109120.0,109110.0,0.28522126]
[1756678021372,0.04504666,109130.0,109110.0,0.28522126]
[1756678021590,0.3914818,109130.0,109120.0,0.1886055]
[1756678021813,0.3914818,109130.0,109120.0,0.00516]
[1756678022018,0.71853459,109130.0,109120.0,0.00516]
[1756678022484,0.71853459,109130.0,109120.0,0.00745105]
[1756678022680,0.74609159,109130.0,109120.0,0.00745105]
[1756678023335,0.74609159,109130.0,109120.0,0.00213]
[1756678023336,0.4210488,109130.0,109120.0,0.00213]
[1756678023553,0.42104112,109130.0,109120.0,0.00616]
[1756678023987,0.74809391,109130.0,109120.0,0.00616]
[1756678024397,0.42104112,109130.0,109120.0,0.00616]
[1756678024617,0.027557,109130.0,109120.0,0.43838446]
[1756678025123,0.027557,109130.0,109120.0,0.76543725]
[1756678025386,0.367557,109130.0,109120.0,0.76543725]
[1756678025649,0.367557,109130.0,109120.0,0.43838446]
[1756678026029,0.027557,109130.0,109120.0,0.43738446]
[1756678026814,0.027557,109130.0,109120.0,0.50786446]
[1756678027040,0.027557,109130.0,109120.0,0.83691725]
[1756678027264,0.027557,109130.0,109120.0,0.50986446]
[1756678028139,0.027557,109130.0,109120.0,0.51186446]
[1756678031730,0.027557,109130.0,109120.0,0.35590446]
[1756678031964,0.027557,109130.0,109120.0,0.51182446]
[1756678033028,0.027557,109130.0,109120.0,0.35590446]
[1756678033226,0.53988745,109130.0,109120.0,0.32547001]
[1756678033437,0.54289745,109130.0,109120.0,0.25286001]
[1756678033565,0.88289745,109130.0,109120.0,0.25286001]
[1756678034168,0.88289745,109130.0,109120.0,0.25290001]
[1756678034377,0.88289745,109130.0,109120.0,0.09698001]
[1756678034592,0.97119377,109130.0,109120.0,0.15992]
[1756678035214,0.98830004,109130.0,109120.0,0.004]
[1756678035423,0.90855621,109130.0,109120.0,0.004]
[1756678036070,0.58150342,109130.0,109120.0,0.004]
[1756678036286,0.90855621,109130.0,109120.0,0.002]
[1756678036725,0.90855621,109130.0,109120.0,0.003]
[1756678037375,0.90855621,109130.0,109120.0,0.001]
[1756678044204,1.02298959,109130.0,109120.0,0.001]
[1756678044773,1.00801822,109130.0,109120.0,0.001]
[1756678044979,1.02300791,109130.0,109120.0,0.001]
[1756678045600,1.02301006,109130.0,109120.0,0.001]
[1756678045771,1.01445042,109130.0,109120.0,0.001]
[1756678045973,1.02301005,109130.0,109120.0,0.001]
[1756678047054,1.53987188,109130.0,109120.0,0.001]
[1756678047206,1.58424474,109130.0,109120.0,0.001]
[1756678048232,1.58524474,109130.0,109120.0,0.001]
[1756678048672,0.18330125,109110.0,109100.0,0.2985143]
[1756678048892,0.52942268,109110.0,109100.0,0.0723543]
[1756678049305,0.55698468,109110.0,109100.0,0.0723543]
[1756678049854,0.55698468,109110.0,109100.0,0.0784343]
[1756678050063,0.55698468,109110.0,109100.0,0.00947]
[1756678050352,0.55503468,109110.0,109100.0,0.00947]
[1756678050598,0.22798189,109110.0,109100.0,0.00947]
[1756678050814,0.55503468,109110.0,109100.0,0.00947]
[1756678051872,0.55503126,109110.0,109100.0,0.00947]
[1756678052831,0.55698126,109110.0,109100.0,0.00947]
[1756678053092,0.22797847,109110.0,109100.0,0.00947]
[1756678053301,0.53791604,109110.0,109100.0,0.16499]
[1756678053502,0.55697758,109110.0,109100.0,0.16499]
[1756678053725,0.22797479,109110.0,109100.0,0.16499]
[1756678053918,0.21086325,109110.0,109100.0,0.44357953]
[1756678054148,0.21086325,109110.0,109100.0,0.44128806]
[1756678054301,0.027562,109110.0,109100.0,0.44128806]
[1756678054497,0.21086325,109110.0,109100.0,0.28576806]
[1756678057453,0.53791604,109110.0,109100.0,0.10245001]
[1756678057667,0.55502818,109110.0,109100.0,0.10245001]
[1756678057852,0.53791604,109110.0,109100.0,0.10245001]
[1756678058431,0.55502998,109110.0,109100.0,0.10245001]
[1756678059416,0.55503249,109110.0,109100.0,0.10245001]
[1756678061481,0.55698249,109110.0,109100.0,0.10245001]
[1756678061691,0.55698249,109110.0,109100.0,0.25809001]
[1756678061878,0.2299297,109110.0,109100.0,0.25809001]
[1756678062082,0.55698249,109110.0,109100.0,0.25809001]
[1756678065626,0.56555177,109110.0,109100.0,0.25809001]
[1756678066603,0.55700536,109110.0,109100.0,0.25809001]
[1756678066755,0.56557502,109110.0,109100.0,0.25809001]
[1756678067416,0.5655761,109110.0,109100.0,0.25809001]
[1756678068333,0.65387242,109110.0,109100.0,0.25494001]
[1756678068540,0.65387242,109110.0,109100.0,0.25809001]
[1756678069308,0.23657331,109110.0,109100.0,0.44140806]
[1756678069561,0.22800365,109110.0,109100.0,0.44140806]
[1756678069772,0.22800365,109110.0,109100.0,0.28576806]
[1756678069978,0.56362808,109110.0,109100.0,0.25793001]
[1756678070889,0.23657529,109110.0,109100.0,0.25793001]
[1756678071433,0.23854529,109110.0,109100.0,0.25793001]
[1756678073266,0.24497849,109110.0,109100.0,0.25793001]
[1756678073738,0.24300849,109110.0,109100.0,0.44124806]
[1756678074157,0.23657529,109110.0,109100.0,0.44124806]
[1756678074361,0.24300922,109110.0,109100.0,0.44124806]
[1756678074573,0.23657529,109110.0,109100.0,0.44124806]
[1756678074751,0.23659903,109110.0,109100.0,0.44124806]
[1756678075408,0.24303385,109110.0,109100.0,0.44124806]
[1756678077438,0.21944466,109110.0,109100.0,0.44124806]
[1756678077635,0.24304353,109110.0,109100.0,0.44124806]
[1756678077840,0.05974228,109110.0,109100.0,0.44124806]
[1756678078060,0.23660748,109110.0,109100.0,0.44124806]
[1756678078269,0.05330623,109110.0,109100.0,0.44124806]
[1756678078490,0.05330625,109110.0,109100.0,0.44124806]
[1756678079155,0.56802607,109110.0,109100.0,0.44128806]
[1756678079386,0.04472482,109110.0,109100.0,0.76834085]
[1756678079592,0.027562,109110.0,109100.0,0.76834085]
[1756678083183,0.027562,109110.0,109100.0,0.44128806]
[1756678083399,0.027562,109110.0,109100.0,0.76834085]
[1756678084048,0.027562,109110.0,109100.0,0.44128806]
[1756678084276,0.027562,109110.0,109100.0,0.76834085]
[1756678084498,0.027562,109110.0,109100.0,0.44128806]
[1756678084720,0.027562,109110.0,109100.0,0.76834085]
[1756678087167,0.027562,109110.0,109100.0,0.61282085]
[1756678087385,0.027562,109110.0,109100.0,0.76830085]
[1756678093301,0.027562,109110.0,109100.0,0.44124806]
[1756678093504,0.027562,109110.0,109100.0,0.76830085]
[1756678095978,0.027562,109110.0,109100.0,0.44124806]
[1756678096183,0.027562,109110.0,109100.0,0.76830085]
[1756678096754,0.027562,109110.0,109100.0,1.09535364]
[1756678096975,0.00047533,109140.0,109130.0,0.18326766]
[1756678097192,0.00047533,109140.0,109130.0,0.50204767]
[1756678097407,0.00244533,109140.0,109130.0,0.50726767]
[1756678097629,0.02802633,109140.0,109130.0,0.83432046]
[1756678098711,0.02802633,109140.0,109130.0,0.83632046]
[1756678099158,0.02802633,109140.0,109130.0,0.51126767]
[1756678099378,0.02802633,109140.0,109130.0,0.83832046]
[1756678100014,0.02802633,109140.0,109130.0,0.84749373]
[1756678100220,0.02802633,109140.0,109130.0,0.69217373]
[1756678100429,0.02802633,109140.0,109130.0,0.84757373]
[1756678100902,0.02802633,109140.0,109130.0,0.84357373]
[1756678101324,0.02802633,109140.0,109130.0,0.84757373]
[1756678101548,0.02802633,109140.0,109130.0,0.84753373]
[1756678102023,0.02802633,109140.0,109130.0,0.86847255]
[1756678102211,0.00047533,109140.0,109130.0,0.86847255]
[1756678102710,0.37678149,109180.0,109160.0,0.18321729]
[1756678102928,0.34212707,109170.0,109160.0,0.2761973]
[1756678103145,0.34212707,109170.0,109160.0,0.4315173]
[1756678103588,0.00212707,109170.0,109160.0,0.4315173]
[1756678104693,0.02967207,109170.0,109160.0,0.4315173]
[1756678104914,0.21287258,109170.0,109160.0,0.2761973]
[1756678105131,0.54146537,109170.0,109160.0,0.4318373]
[1756678105599,0.56709405,109170.0,109160.0,0.4318373]
[1756678107150,0.56555405,109170.0,109160.0,0.4328373]
[1756678108252,0.05530075,109170.0,109160.0,0.4328373]
[1756678108830,0.23849714,109170.0,109160.0,0.4382073]
[1756678109470,0.05529663,109170.0,109160.0,0.4382073]
[1756678109708,0.05325663,109170.0,109160.0,0.4382073]
[1756678109942,0.05325663,109170.0,109160.0,0.76426009]
[1756678110178,0.03617359,109170.0,109160.0,0.76626009]
[1756678110393,0.02763207,109170.0,109160.0,0.76626009]
[1756678111931,8.707e-05,109170.0,109160.0,0.76526009]
[1756678112806,8.707e-05,109170.0,109160.0,0.76426009]
[1756678113026,8.707e-05,109170.0,109160.0,0.76826009]
[1756678113237,8.707e-05,109170.0,109160.0,0.79219891]
[1756678113701,8.707e-05,109170.0,109160.0,1.2162517]
[1756678114164,8.707e-05,109170.0,109160.0,1.2212517]
[1756678114380,8.707e-05,109170.0,109160.0,1.26156348]
[1756678115996,8.707e-05,109170.0,109160.0,1.26140348]
[1756678116445,8.707e-05,109170.0,109160.0,0.4018179]
[1756678116663,8.707e-05,109170.0,109160.0,0.88435069]
[1756678116876,8.707e-05,109170.0,109160.0,0.88439069]
[1756678117095,8.707e-05,109170.0,109160.0,0.67887069]
[1756678117285,8.707e-05,109170.0,109160.0,0.88439069]
[1756678120828,8.707e-05,109170.0,109160.0,0.83439069]
[1756678121048,8.707e-05,109170.0,109160.0,0.3518179]
[1756678121249,8.707e-05,109170.0,109160.0,0.5071779]
[1756678121947,8.707e-05,109170.0,109160.0,0.3518179]
[1756678122155,8.707e-05,109170.0,109160.0,0.5071779]
[1756678122370,8.707e-05,109170.0,109160.0,0.33087908]
[1756678122581,8.707e-05,109170.0,109160.0,0.48619908]
[1756678122582,0.00206707,109170.0,109160.0,0.48619908]
[1756678122790,0.01059651,109170.0,109160.0,0.48619908]
[1756678124615,0.00861651,109170.0,109160.0,0.48619908]
[1756678127152,0.00861651,109170.0,109160.0,0.48611908]
[1756678127878,0.01059651,109170.0,109160.0,0.48611908]
[1756678128105,0.01059651,109170.0,109160.0,0.48395908]
[1756678128323,0.3376493,109170.0,109160.0,0.32871908]
[1756678128538,0.3376493,109170.0,109160.0,0.2851973]
[1756678128539,0.53954775,109170.0,109160.0,0.2851973]
[1756678128756,0.53954775,109170.0,109160.0,0.4404373]
[1756678128973,0.53954775,109170.0,109160.0,0.25322001]
[1756678129190,0.91350537,109170.0,109160.0,0.25322001]
[1756678129421,1.24055816,109170.0,109160.0,0.25022001]
[1756678129640,0.91350537,109170.0,109160.0,0.25022001]
[1756678129811,1.24055816,109170.0,109160.0,0.25422001]
[1756678130032,0.91350537,109170.0,109160.0,0.25422001]
[1756678130235,1.23463296,109170.0,109160.0,0.15724]
[1756678130475,1.26029568,109170.0,109160.0,0.15724]
[1756678130627,1.26029568,109170.0,109160.0,0.15924]
[1756678130831,1.26029568,109170.0,109160.0,0.16024]
[1756678131085,1.26029568,109170.0,109160.0,0.001]
[1756678131260,1.26932164,109170.0,109160.0,0.15924]
[1756678132191,1.26932164,109170.0,109160.0,0.15824]
[1756678132560,1.26932164,109170.0,109160.0,0.15524]
[1756678132758,0.18321729,109160.0,109150.0,0.25371394]
[1756678132968,0.53791195,109160.0,109150.0,0.50193395]
[1756678133404,0.56545795,109160.0,109150.0,0.50193395]
[1756678133995,0.56546064,109160.0,109150.0,0.50293395]
[1756678134195,0.05519056,109160.0,109150.0,0.50593395]
[1756678134403,0.05321056,109160.0,109150.0,0.83816674]
[1756678134616,0.00855396,109160.0,109150.0,0.83816674]
[1756678134842,0.0361851,109170.0,109160.0,0.18321729]
[1756678135051,0.05329729,109170.0,109160.0,0.2761973]
[1756678135252,0.05329729,109170.0,109160.0,0.2813773]
[1756678135667,0.56553059,109170.0,109160.0,0.2793873]
[1756678135872,0.38233008,109170.0,109160.0,0.4347073]
[1756678136077,0.38233008,109170.0,109160.0,0.4386973]
[1756678136703,0.38035008,109170.0,109160.0,0.4386973]
[1756678137121,0.38233008,109170.0,109160.0,0.4386973]
[1756678137407,0.56553059,109170.0,109160.0,0.2781973]
[1756678137621,0.56553059,109170.0,109160.0,0.4335173]
[1756678140743,0.03816514,109170.0,109160.0,0.4386973]
[1756678140987,0.38035847,109170.0,109160.0,0.4386973]
[1756678141240,0.05330568,109170.0,109160.0,0.4386973]
[1756678142118,0.03618806,109170.0,109160.0,0.76375009]
[1756678142347,0.03618806,109170.0,109160.0,0.4366973]
[1756678142579,0.03618806,109170.0,109160.0,0.4386973]
[1756678143019,0.03618806,109170.0,109160.0,0.4366973]
[1756678143491,0.03618806,109170.0,109160.0,0.4406973]
[1756678143699,0.03618806,109170.0,109160.0,0.76775009]
[1756678144547,8.707e-05,109170.0,109160.0,0.76775009]
[1756678145199,8.707e-05,109170.0,109160.0,0.76375009]
[1756678145422,8.707e-05,109170.0,109160.0,0.76675009]
[1756678145616,8.707e-05,109170.0,109160.0,0.76875009]
[1756678145978,8.707e-05,109170.0,109160.0,0.76575009]
[1756678146374,8.707e-05,109170.0,109160.0,0.76375009]
[1756678146605,8.707e-05,109170.0,109160.0,0.4366973]
[1756678146790,8.707e-05,109170.0,109160.0,0.4426973]
[1756678147001,8.707e-05,109170.0,109160.0,0.4406973]
[1756678147358,0.02762707,109170.0,109160.0,0.4406973]
[1756678147916,8.707e-05,109170.0,109160.0,0.4406973]
[1756678148553,8.707e-05,109170.0,109160.0,0.2873773]
[1756678148767,8.707e-05,109170.0,109160.0,0.4426173]
[1756678149117,8.707e-05,109170.0,109160.0,0.76967009]
[1756678149321,8.707e-05,109170.0,109160.0,0.79060891]
[1756678149526,8.707e-05,109170.0,109160.0,0.89060891]
[1756678150168,8.707e-05,109170.0,109160.0,0.88660891]
[1756678150745,8.707e-05,109170.0,109160.0,0.88460891]
[1756678151169,8.707e-05,109170.0,109160.0,0.72936891]
[1756678151362,8.707e-05,109170.0,109160.0,0.88460891]
[1756678151770,8.707e-05,109170.0,109160.0,0.73336891]
[1756678151972,8.707e-05,109170.0,109160.0,0.88860891]
[1756678152215,8.707e-05,109170.0,109160.0,0.88660891]
[1756678152425,0.027535,109190.0,109180.0,0.18318373]
[1756678152615,0.027535,109190.0,109180.0,0.82889653]
[1756678152827,0.35433511,109210.0,109200.0,0.18315018]
[1756678153058,0.70914724,109210.0,109200.0,0.43137019]
[1756678153264,0.72234513,109210.0,109200.0,0.43137019]
[1756678153481,0.70521694,109210.0,109200.0,0.43137019]
[1756678155806,0.70521694,109210.0,109200.0,0.43237019]
[1756678156007,0.70521694,109210.0,109200.0,0.27713019]
[1756678156237,0.70521694,109210.0,109200.0,0.43537019]
[1756678156606,0.88835035,109210.0,109200.0,0.28013019]
[1756678156819,0.88835035,109210.0,109200.0,0.43537019]
[1756678157415,0.88835035,109210.0,109200.0,0.43533019]
[1756678158316,0.70521694,109210.0,109200.0,0.43533019]
[1756678158455,0.69665285,109210.0,109200.0,0.43533019]
[1756678159475,0.87978626,109210.0,109200.0,0.43533019]
[1756678160120,0.96967258,109210.0,109200.0,0.25218001]
[1756678160333,0.97822454,109210.0,109200.0,0.25218001]
[1756678160792,0.88992822,109210.0,109200.0,0.43533019]
[1756678161000,0.88833822,109210.0,109200.0,0.43533019]
[1756678161651,0.88834059,109210.0,109200.0,0.43233019]
[1756678162508,0.88834059,109210.0,109200.0,0.43333019]
[1756678162929,0.88834059,109210.0,109200.0,0.43133019]
[1756678163370,0.88834059,109210.0,109200.0,0.43333019]
[1756678170322,0.70520718,109210.0,109200.0,0.43843019]
[1756678170547,0.03617439,109210.0,109200.0,0.50887019]
[1756678170771,0.02762006,109210.0,109200.0,0.50887019]
[1756678173830,0.02762006,109210.0,109200.0,0.83592298]
[1756678174721,0.02762006,109210.0,109200.0,0.8548618]
[1756678174937,8.706e-05,109210.0,109200.0,0.8548618]
[1756678175365,8.706e-05,109210.0,109200.0,0.8588618]
[1756678175597,8.706e-05,109210.0,109200.0,0.8608618]
[1756678175812,8.706e-05,109210.0,109200.0,0.8568618]
[1756678176054,8.706e-05,109210.0,109200.0,0.8598618]
[1756678176261,8.706e-05,109210.0,109200.0,0.53580901]
[1756678179442,8.706e-05,109210.0,109200.0,0.38060901]
[1756678179648,8.706e-05,109210.0,109200.0,0.53576901]
[1756678181746,8.706e-05,109210.0,109200.0,0.38060901]
[1756678181962,8.706e-05,109210.0,109200.0,0.53576901]
[1756678183590,0.32713985,109210.0,109200.0,0.53576901]
[1756678184043,0.32713985,109210.0,109200.0,0.38060901]
[1756678184243,0.32713985,109210.0,109200.0,0.53572901]
[1756678186285,0.32713985,109210.0,109200.0,0.38060901]
[1756678186486,0.32713985,109210.0,109200.0,0.53572901]
[1756678186487,8.706e-05,109210.0,109200.0,0.53572901]
[1756678186690,0.32713985,109210.0,109200.0,0.53572901]
[1756678189124,0.66474007,109210.0,109200.0,0.50969019]
[1756678189329,0.69227007,109210.0,109200.0,0.50969019]
[1756678189532,0.69227007,109210.0,109200.0,0.35457019]
[1756678189941,0.69227007,109210.0,109200.0,0.34957019]
[1756678190282,0.69227007,109210.0,109200.0,0.50169019]
[1756678190423,0.69227007,109210.0,109200.0,0.34757019]
[1756678190619,0.69227007,109210.0,109200.0,0.50269019]
[1756678191042,0.69227007,109210.0,109200.0,0.34757019]
[1756678191264,0.87699348,109210.0,109200.0,0.50669019]
[1756678191685,0.87699348,109210.0,109200.0,0.50269019]
[1756678191858,1.25281917,109210.0,109200.0,0.16742001]
[1756678192070,1.21699348,109210.0,109200.0,0.32254001]
[1756678193770,1.20842605,109210.0,109200.0,0.32254001]
[1756678194109,1.21699516,109210.0,109200.0,0.32254001]
[1756678194303,1.20842605,109210.0,109200.0,0.32254001]
[1756678194552,1.21699554,109210.0,109200.0,0.32254001]
[1756678194685,1.21699537,109210.0,109200.0,0.32254001]
[1756678197224,1.21699537,109210.0,109200.0,0.50569019]
[1756678197406,1.21699537,109210.0,109200.0,0.32254001]
[1756678198613,0.70323917,109210.0,109200.0,0.51105019]
[1756678199020,0.36323917,109210.0,109200.0,0.51105019]
[1756678199220,0.35466985,109210.0,109200.0,0.51105019]
[1756678201752,0.53780326,109210.0,109200.0,0.51105019]
[1756678202013,0.53978326,109210.0,109200.0,0.51105019]
[1756678202418,0.35664985,109210.0,109200.0,0.51105019]
[1756678202626,0.53978326,109210.0,109200.0,0.50565019]
[1756678202759,0.35664985,109210.0,109200.0,0.50565019]
[1756678202956,0.35664985,109210.0,109200.0,0.51101019]
[1756678203155,0.35466985,109210.0,109200.0,0.51101019]
[1756678203601,0.35466985,109210.0,109200.0,0.35593019]
[1756678203799,0.35466985,109210.0,109200.0,0.51101019]
[1756678205347,0.02761706,109210.0,109200.0,0.51101019]
[1756678206012,8.706e-05,109210.0,109200.0,0.51101019]
[1756678207723,8.706e-05,109210.0,109200.0,0.50801019]
[1756678207926,8.706e-05,109210.0,109200.0,0.51101019]
[1756678208346,8.706e-05,109210.0,109200.0,0.51001019]
[1756678208768,8.706e-05,109210.0,109200.0,0.51501019]
[1756678210523,8.706e-05,109210.0,109200.0,0.53594901]
[1756678218522,0.32713985,109210.0,109200.0,0.53594901]
[1756678220863,8.706e-05,109210.0,109200.0,0.53594901]
[1756678224897,8.706e-05,109210.0,109200.0,0.9630018]
[1756678226180,0.32713985,109210.0,109200.0,0.58586901]
[1756678226831,0.32713985,109210.0,109200.0,0.38086901]
[1756678227044,0.51027326,109210.0,109200.0,0.35271883]
[1756678227360,0.18322047,109210.0,109200.0,0.53586901]
[1756678227577,0.51027326,109210.0,109200.0,0.53586901]
[1756678227788,0.32713985,109210.0,109200.0,0.58586901]
[1756678229578,0.51027326,109210.0,109200.0,0.38086901]
[1756678229779,0.51027326,109210.0,109200.0,0.53586901]
[1756678230412,0.51027326,109210.0,109200.0,0.38086901]
[1756678230614,0.51027326,109210.0,109200.0,0.53586901]
[1756678231892,0.18322047,109210.0,109200.0,0.53586901]
[1756678232098,0.51027326,109210.0,109200.0,0.53586901]
[1756678233151,0.51225326,109210.0,109200.0,0.19771883]
[1756678233384,0.51225326,109210.0,109200.0,0.32642001]
[1756678233601,0.86879991,109210.0,109200.0,0.32642001]
[1756678234173,0.89633091,109210.0,109200.0,0.17142001]
[1756678234348,0.90491919,109210.0,109200.0,0.32642001]
[1756678234755,0.90491919,109210.0,109200.0,0.32342001]
[1756678234959,0.90491919,109210.0,109200.0,0.31942001]
[1756678235170,0.90491919,109210.0,109200.0,0.32242001]
[1756678235799,0.90491919,109210.0,109200.0,0.31942001]
[1756678236013,0.90491848,109210.0,109200.0,0.32242001]
[1756678236629,0.90491848,109210.0,109200.0,0.16742001]
[1756678236997,0.90491848,109210.0,109200.0,0.32238001]
[1756678237971,0.2508129,109210.0,109200.0,0.32238001]
[1756678238178,0.53978426,109210.0,109200.0,0.32238001]
[1756678238825,0.56927812,109210.0,109200.0,0.32238001]
[1756678242114,0.21273147,109210.0,109200.0,0.32238001]
[1756678242321,0.53978426,109210.0,109200.0,0.32238001]
[1756678243416,0.55273147,109210.0,109200.0,0.32238001]
[1756678243625,0.87780426,109210.0,109200.0,0.32740001]
[1756678247167,0.87780426,109210.0,109200.0,0.16742001]
[1756678247168,0.87978426,109210.0,109200.0,0.16742001]
[1756678247538,0.88137426,109210.0,109200.0,0.32238001]
[1756678247980,1.20842705,109210.0,109200.0,0.16742001]
[1756678248189,1.29672337,109210.0,109200.0,0.32238001]
[1756678248411,1.30529717,109210.0,109200.0,0.07444]
[1756678248620,1.26205187,109210.0,109200.0,0.2294]
[1756678248941,1.26205187,109210.0,109200.0,0.15896]
[1756678249757,1.26205187,109210.0,109200.0,0.15796]
[1756678250422,1.26205187,109210.0,109200.0,0.15496]
[1756678250862,1.26205187,109210.0,109200.0,0.002]
[1756678251042,1.26205187,109210.0,109200.0,0.15696]
[1756678251240,1.26205187,109210.0,109200.0,0.15496]
[1756678251416,1.26205187,109210.0,109200.0,0.15696]
[1756678253816,1.26204643,109210.0,109200.0,0.15696]
[1756678255446,1.26203798,109210.0,109200.0,0.15696]
[1756678257500,1.26204392,109210.0,109200.0,0.15696]
[1756678259086,1.26204392,109210.0,109200.0,0.15692]
[1756678259714,1.26045392,109210.0,109200.0,0.15692]
[1756678260105,1.26045392,109210.0,109200.0,0.002]
[1756678260312,1.35034024,109210.0,109200.0,0.002]
[1756678260565,0.52316695,109190.0,109180.0,0.07044]
[1756678260767,1.20298554,109190.0,109180.0,0.31834001]
[1756678260970,1.20496554,109190.0,109180.0,0.31834001]
[1756678261130,0.99374907,109190.0,109180.0,0.31834001]
[1756678261930,0.99374907,109190.0,109180.0,0.32034001]
[1756678266385,0.99374907,109190.0,109180.0,0.32342001]
[1756678267062,0.99374981,109190.0,109180.0,0.32342001]
[1756678267200,0.99375007,109190.0,109180.0,0.32342001]
[1756678268031,0.99375007,109190.0,109180.0,0.32551001]
[1756678270727,0.99374613,109190.0,109180.0,0.32551001]
[1756678272417,0.90544981,109190.0,109180.0,0.32551001]
[1756678273180,0.90346981,109190.0,109180.0,0.32551001]
[1756678273812,0.90346981,109190.0,109180.0,0.17059001]
[1756678274029,0.90544981,109190.0,109180.0,0.32030001]
[1756678274467,0.90346981,109190.0,109180.0,0.32547001]
[1756678276231,0.90346981,109190.0,109180.0,0.17059001]
[1756678276453,0.90346981,109190.0,109180.0,0.32547001]
[1756678277992,0.90349035,109190.0,109180.0,0.32547001]
[1756678278213,0.90349195,109190.0,109180.0,0.32547001]
[1756678278830,0.90349587,109190.0,109180.0,0.32547001]
[1756678279044,0.57644308,109190.0,109180.0,0.32547001]
[1756678279270,0.88849587,109190.0,109180.0,0.32547001]
[1756678280955,0.56144308,109190.0,109180.0,0.32547001]
[1756678281142,0.88849587,109190.0,109180.0,0.50865374]
[1756678281495,0.88850173,109190.0,109180.0,0.17059001]
[1756678281738,0.88850173,109190.0,109180.0,0.32547001]
[1756678288497,0.8713404,109190.0,109180.0,0.32547001]
[1756678288741,0.88851855,109190.0,109180.0,0.32547001]
[1756678290188,0.88851855,109190.0,109180.0,0.50865374]
[1756678290425,0.32705279,109190.0,109180.0,0.50865374]
[1756678290706,0.027533,109200.0,109190.0,0.18316228]
[1756678290957,0.35458579,109200.0,109190.0,0.28121229]
[1756678291827,0.53773597,109200.0,109190.0,0.28121229]
[1756678292252,0.53773597,109200.0,109190.0,0.28221229]
[1756678292511,0.35458579,109200.0,109190.0,0.28421229]
[1756678298288,0.35458579,109200.0,109190.0,0.43901229]
[1756678301464,0.027533,109200.0,109190.0,0.43901229]
[1756678301647,0.35458579,109200.0,109190.0,0.43901229]
[1756678305931,0.027533,109200.0,109190.0,0.43901229]
[1756678306148,0.32713985,109210.0,109200.0,0.18315018]
[1756678306351,0.35664985,109210.0,109200.0,0.34956019]
[1756678306825,0.35664985,109210.0,109200.0,0.35164019]
[1756678307797,0.35664985,109210.0,109200.0,0.35264019]
[1756678308452,0.69664985,109210.0,109200.0,0.35264019]
[1756678308873,0.69466985,109210.0,109200.0,0.35264019]
[1756678310208,0.36761706,109210.0,109200.0,0.35264019]
[1756678310416,0.69466985,109210.0,109200.0,0.35264019]
[1756678311560,0.69466985,109210.0,109200.0,0.50736019]
[1756678312648,0.36761706,109210.0,109200.0,0.50736019]
[1756678312851,0.02761706,109210.0,109200.0,0.50736019]
[1756678313532,0.02761706,109210.0,109200.0,0.35264019]
[1756678313710,0.02761706,109210.0,109200.0,0.35164019]
[1756678313920,0.02761706,109210.0,109200.0,0.50632019]
[1756678314072,0.02761706,109210.0,109200.0,0.51132019]
[1756678314276,0.02761706,109210.0,109200.0,0.35664019]
[1756678314479,0.02761706,109210.0,109200.0,0.50932019]
[1756678314685,0.02761706,109210.0,109200.0,0.51232019]
[1756678315804,0.36761706,109210.0,109200.0,0.51232019]
[1756678316592,0.02761706,109210.0,109200.0,0.51232019]
[1756678316760,0.02761706,109210.0,109200.0,0.35764019]
[1756678316974,0.02761706,109210.0,109200.0,0.51232019]
[1756678317663,0.35466985,109210.0,109200.0,0.51232019]
[1756678320791,0.35664985,109210.0,109200.0,0.35764019]
[1756678321014,0.35664985,109210.0,109200.0,0.35257019]
[1756678321377,0.35664985,109210.0,109200.0,0.50721019]
[1756678322017,0.35664985,109210.0,109200.0,0.51022019]
[1756678322225,0.35664985,109210.0,109200.0,0.51231019]
[1756678322662,0.35664985,109210.0,109200.0,0.35767019]
[1756678322905,0.88137326,109210.0,109200.0,0.16942001]
[1756678323129,1.30514389,109210.0,109200.0,0.32406001]
[1756678323331,1.32230825,109210.0,109200.0,0.32406001]
[1756678324225,1.32230825,109210.0,109200.0,0.31806001]
[1756678324664,1.23417257,109210.0,109200.0,0.32006001]
[1756678326061,1.23417257,109210.0,109200.0,0.32106001]
[1756678326879,1.23417257,109210.0,109200.0,0.16642001]
[1756678327269,1.23417257,109210.0,109200.0,0.32102001]
[1756678327512,1.23417257,109210.0,109200.0,0.32106001]
[1756678327865,1.23417257,109210.0,109200.0,0.31906001]
[1756678328740,1.23417257,109210.0,109200.0,0.32006001]